Cogmind - Beta 13 @@@ ROGUE MODE // 2024.04.21 @ 14:45:14 Player: RKyeun Result: Destroyed by 8R-AWN with 8R-AWN's Boregun Performance ------------- Evolutions (0) 0 Regions Visited (2) 400 Robots Destroyed (12) 60 Value Destroyed (160) 160 Prototype IDs (0) 0 Alien Tech Used (0) 0 Bonus (-63) -63 TOTAL SCORE: 557 Bonus ------- Friendly Fire -63 Cogmind --------- Core Integrity 0/250 Matter 290/300 Energy 96/100 System Corruption 0% Temperature Cool (1) Movement Flying (120) Ox1 Location -10/Mines Parts ------- > --- POWER (1) -------- (None) > --- PROPULSION (2) --- Flight Unit > --- UTILITY (2) ------ Heat Sink Small Storage Unit > --- WEAPON (2) ------- Welding Torch > --- INVENTORY (8) ---- Light Ion Engine Light Ion Engine Wheel Power Shielding Tractor Beam Peak State ------------ > --- POWER ------------ Light Ion Engine > --- PROPULSION ------- Light Treads Light Treads > --- UTILITY ---------- Small Storage Unit Improved Terrain Scanner > --- WEAPON ----------- Assault Rifle Assault Rifle > --- INVENTORY -------- Light Ion Engine Light Ion Engine Light Ion Engine Tractor Beam Medium Laser [Rating: 9] Favorites ----------- Power Light Ion Engine Engine Light Ion Engine Propulsion Light Treads Treads Light Treads Flight Unit Flight Unit Utility Small Storage Unit Device Improved Terrain Scanner Storage Small Storage Unit Weapon Assault Rifle Energy Gun Medium Laser Ballistic Gun Assault Rifle Launcher Grenade Launcher Special Weapon Welding Torch Build | -11 -10 -10 ------- Run | Yrd Mat Min Slots Evolved . | . . . Power . | . . . Propulsion . | . . . Utility . | . . . Weapon . | . . . Parts Attached 15 | 7 1 7 Power 2 | 1 . 1 Engine 2 | 1 . 1 Core . | . . . Reactor . | . . . Propulsion 3 | 2 . 1 Treads 2 | 2 . . Leg . | . . . Wheel . | . . . Hover . | . . . Flight 1 | . . 1 Utility 3 | 2 . 1 Device 2 | 1 . 1 Storage 1 | 1 . . Processor . | . . . Hackware . | . . . Protection . | . . . Artifact . | . . . Weapon 7 | 2 1 4 Energy Gun 1 | . . 1 Energy Cannon . | . . . Ballistic Gun 4 | 2 . 2 Ballistic Cannon . | . . . Launcher 1 | . 1 . Special Weapon 1 | . . 1 Impact Weapon . | . . . Slashing Weapon . | . . . Piercing Weapon . | . . . Special Melee Weapon . | . . . Unidentified Prototypes . | . . . Parts Lost 10 | . . 10 Power 2 | . . 2 Propulsion 2 | . . 2 Utility 1 | . . 1 Weapon 5 | . . 5 Highest Loss Streak 9 | . . 9 To Critical Strikes 5 | . . 5 Average Slot Usage (%) 79 | . 100 65 Engine 13 | . 14 12 Treads 16 | . 28 8 Flight 2 | . . 4 Device 13 | . 14 13 Storage 14 | . 14 14 Energy Gun 1 | . . 2 Ballistic Gun 10 | . 16 6 Launcher 6 | . 11 2 Naked Turns . | . . . Heaviest Build 14 | 13 14 14 Greatest Support 40 | 40 40 40 Greatest Overweight (x) 2 | . . 2 Average Overweight (x) . | . . 1 Largest Inventory Capacity 8 | 8 8 8 Average Capacity 7 | 7 8 8 Most Carried 8 | 6 8 8 Average Carried 5 | 3 7 5 Final Capacity 8 | 8 8 8 Final Carried 8 | 5 8 5 Class Distribution -------------------- 100% | Mutant Dominant Class ---------------- Mutant | -10/Materials Mutant | -10/Mines Resources | -11 -10 -10 ----------- Run | Yrd Mat Min Matter Collected 535 | 281 45 209 Remotely . | . . . Salvage Created 337 | 119 84 134 Parts 32 | 12 12 8 Haulers Intercepted . | . . . Recyclers Shooed . | . . . Parts Field Recycled . | . . . Retrieved Matter . | . . . Parts Self-Destructed . | . . . Prevented . | . . . Kills | -11 -10 -10 ------- Run | Yrd Mat Min Combat Hostiles Destroyed 5 | . 5 . Guns 3 | . 3 . AOE 2 | . 2 . Classes Destroyed 5 | 2 3 . Builder 2 | . 1 1 Tunneler 2 | 2 . . Recycler 3 | 1 . 2 Swarmer 3 | . 3 . Grunt 2 | . 2 . Best Kill Streak 4 | 2 4 3 Combat Bots Only 3 | . 3 . Max Kills in Single Turn 3 | 1 3 2 Gunslinging . | . . . Exploded 1 | . 1 . Melee . | . . . Uniques/NPCs Destroyed . | . . . Combat | -11 -10 -10 -------- Run | Yrd Mat Min Hostile Shots Fired 93 | . 31 62 Missed 31 | . 16 15 Damage Taken 1053 | . 180 873 Core 266 | . 20 246 Absorbed by Shields . | . . . Core Remaining (%) 100 | 100 . . Volleys Fired 43 | 8 8 27 Largest 2 | 2 2 2 Hottest 70 | 40 50 70 Shots Fired 68 | 16 13 39 Gun 58 | 16 8 34 Cannon . | . . . Launcher 10 | . 5 5 Special . | . . . Kinetic 50 | 16 8 26 Thermal 8 | . . 8 Explosive 10 | . 5 5 Electromagnetic . | . . . Robot Hit Streak 6 | 4 2 6 Robot Miss Streak 6 | 4 6 2 Penetration Max . | . . . Secondary Targets . | . . . Shots Hit Robots 34 | 7 4 23 Core Hits 20 | 4 6 10 Critical Kills . | . . . Critical Parts Destroyed . | . . . Critical Strikes . | . . . Melee Attacks . | . . . Impact . | . . . Slashing . | . . . Piercing . | . . . Sneak Attacks . | . . . Combat Hostiles . | . . . Follow-up Attacks . | . . . Damage Inflicted 726 | 83 287 356 Guns 358 | 83 53 222 Cannons . | . . . Explosions 368 | . 234 134 Melee . | . . . Ramming . | . . . Kinetic 353 | 83 53 217 Thermal 5 | . . 5 Explosive 368 | . 234 134 Electromagnetic . | . . . Impact . | . . . Slashing . | . . . Piercing . | . . . Highest Corruption . | . . . Average Corruption . | . . . Corruption Purged . | . . . Corruption Blocked . | . . . Overload Shots . | . . . Overflow Damage 20 | . 10 10 Projectiles . | . . . Explosions 20 | . 10 10 Melee . | . . . Knockbacks . | . . . Impact . | . . . Kinetic . | . . . Secondary . | . . . Self-Inflicted Damage 120 | . 34 86 Shots 5 | . 1 4 Rammed . | . . . Targets Rammed . | . . . Kicked . | . . . Crushed . | . . . Highest Temperature 10 | . 6 10 Average Temperature 6 | . 3 7 Received Heat Transfer 54 | . 54 . Siege Activations . | . . . Robots Corrupted . | . . . Combat Hostiles . | . . . Parts Fried . | . . . Impact Corruptions . | . . . Robots Melted . | . . . Combat Hostiles . | . . . Parts Melted . | . . . Heat Transferred 45 | . . 45 Parts Sabotaged . | . . . Parts Stolen . | . . . Parts Stripped . | . . . Power Chain Reactions . | . . . Alert | -11 -10 -10 ------- Run | Yrd Mat Min Peak Influence 211 | 15 211 110 Initial 82 | . 9 82 Average 62 | 8 136 53 Maximum Alert Level 1 | . 1 . Low Security (%) 88 | 100 60 100 Level 1 11 | . 39 . Level 2 . | . . . Level 3 . | . . . Level 4 . | . . . Level 5 . | . . . High Security . | . . . Max Security . | . . . Squads Dispatched 2 | . 2 . Investigation . | . . . Extermination . | . . . Reinforcement 2 | . 2 . Assault . | . . . Garrison . | . . . Intercept . | . . . Searches Triggered . | . . . Construction Impeded . | . . . Haulers Reinforced . | . . . Active Scanning Responses . | . . . Cargo Convoy Interrupts . | . . . Stealth | -11 -10 -10 --------- Run | Yrd Mat Min Distress Signals 1 | . 1 . Communications Jammed . | . . . Distress Signals . | . . . Times Spotted 12 | . 7 5 Peak Tracking Total 5 | . 5 3 Tactical Retreats 1 | . . 1 Traps | -11 -10 -10 ------- Run | Yrd Mat Min Traps Triggered . | . . . Indirectly . | . . . Trap Hack Attempts . | . . . Triggered . | . . . Disarmed . | . . . Reprogrammed . | . . . Reused . | . . . Traps Extracted . | . . . Installed . | . . . Triggered . | . . . Machines | -11 -10 -10 ---------- Run | Yrd Mat Min Machines Disabled 2 | . 2 . Max in Single Turn 1 | . 1 . Machines Repaired . | . . . Machines Dismantled . | . . . Machines Sabotaged . | . . . Overloaded Fab Kills . | . . . Hacking | -11 -10 -10 --------- Run | Yrd Mat Min Machines Accessed 1 | . 1 . Terminals 1 | . 1 . Fabricators . | . . . Repair Stations . | . . . Recycling Units . | . . . Scanalyzers . | . . . Garrison Access . | . . . Total Hacks 2 | . 2 . Successful 1 | . 1 . Failed 1 | . 1 . Catastrophic 1 | . 1 . Database Lockouts . | . . . Manual 2 | . 2 . Terminals 2 | . 2 . Fabricators . | . . . Repair Stations . | . . . Recycling Units . | . . . Scanalyzers . | . . . Garrison Access . | . . . Terminal Hacks . | . . . Fabricator Hacks . | . . . Repair Station Hacks . | . . . Recycling Unit Hacks . | . . . Scanalyzer . | . . . Garrison Access Hacks . | . . . Unauthorized Hacks 1 | . 1 . Terminals 1 | . 1 . Botnet 1 | . 1 . Fabricators . | . . . Repair Stations . | . . . Recycling Units . | . . . Scanalyzers . | . . . Garrison Access . | . . . Data Cores Recovered . | . . . Used . | . . . Hacking Detections 1 | . 1 . Full Trace Events . | . . . Feedback Events . | . . . Feedback Blocked . | . . . Robot Schematics Acquired . | . . . Robots Built . | . . . Authchips . | . . . Time . | . . . Total Robot Build Rating . | . . . Part Schematics Acquired . | . . . Parts Built . | . . . Authchips . | . . . Time . | . . . Total Part Build Rating . | . . . Parts Repaired . | . . . Time . | . . . Parts Recycled . | . . . Recycled Matter . | . . . Retrieved Matter . | . . . Retrieved Components . | . . . Parts Scanalyzed . | . . . Part Schematics Acquired . | . . . Parts Damaged . | . . . Bothacking | -11 -10 -10 ------------ Run | Yrd Mat Min Used RIF Installer . | . . . Robots Hacked . | . . . Non-combat . | . . . Combat . | . . . Robot Hacks Applied . | . . . Relay Couplers Released . | . . . Fabnet Peak Effective % . | . . . Robots Rewired . | . . . Allies Hacked . | . . . Hacks Repelled . | . . . Allies | -11 -10 -10 -------- Run | Yrd Mat Min Total Allies . | . . . Largest Group . | . . . Highest-Rated Group . | . . . Highest-Rated Ally . | . . . Total Orders . | . . . Ally Attacks . | . . . Total Damage . | . . . Kills . | . . . Allies Corrupted . | . . . Allies Melted . | . . . Intel | -11 -10 -10 ------- Run | Yrd Mat Min Robot Analysis Total . | . . . Derelict Logs Recovered . | . . . Drone Launches . | . . . Drone Recoveries . | . . . Exploration | -11 -10 -10 ------------- Run | Yrd Mat Min Turns Passed 422 | 136 120 166 Spaces Moved 176 | 65 60 51 Core 27 | 9 . 18 Treads 126 | 56 60 10 Legs . | . . . Wheels . | . . . Hover . | . . . Flight 23 | . . 23 Fastest Speed 50 | 50 160 120 Average Speed 157 | 144 160 171 Slowest Speed 200 | 160 160 200 Overloaded Moves . | . . . Propulsion Burnouts . | . . . Robots Hopped . | . . . Cave-ins Triggered . | . . . Exploration Rate (%) 11 | 4 19 11 Regions Visited 2 Branch Regions 1 Pre-discovered Areas . | . . . Known Exits Taken . | . . . Unknown Exits Taken 2 | 1 1 . Scrap Searched . | . . . Spaces Dug . | . . . Terrain Destroyed 65 | . 25 40 Melee . | . . . Projectile . | . . . AOE 65 | . 25 40 Terrain Rammed . | . . . Walls Destroyed . | . . . Machines Disabled . | . . . Actions | -11 -10 -10 --------- Run | Yrd Mat Min Total 254 | 91 71 92 Wait 3 | . . 3 Move 174 | 64 59 51 Hop . | . . . Pick Up 19 | 12 3 4 Fast Attach . | . . . Attach 14 | 7 . 7 Detach . | . . . Swap 1 | . 1 . Drop . | . . . Fire 43 | 8 8 27 Melee . | . . . Ram . | . . . Kick . | . . . Crush . | . . . Escape Stasis . | . . . Rewire . | . . . Trap . | . . . Miscellaneous . | . . . Route ------- -11/Scrapyard -10/Materials -10/Mines History --------- Turn | Location | Event 4 | -11/Scrapyard | Discovered new exit (range 15) 137 | -11/Scrapyard | Entered Materials 213 | -10/Materials | Met 8R-AWN 243 | -10/Materials | Discovered new exit (range 10) 257 | -10/Materials | Entered Mines 259 | -10/Mines | Followed 8R-AWN into the Mines 279 | -10/Mines | Attacked by 8R-AWN 301 | -10/Mines | Core integrity fell below 50% 326 | -10/Mines | Core integrity fell below 20% 351 | -10/Mines | Build established: Mutant 378 | -10/Mines | Lost 9 parts (1p2n1u5w) 423 | -10/Mines | Destroyed by 8R-AWN with 8R-AWN's Boregun Last Messages --------------- K-01 Serf collects debris. Extracted 50 matter. K-01 Serf collects debris. R-06 Scavenger collects Sml. Matter Pod. HV Slug penetrates R-06 Scavenger. R-06 Scavenger suffers critical hit (Destroy). R-06 Scavenger destroyed. Acquired Flight Unit. Acquired 99 matter. Acquired 38 matter. HV Slug penetrates R-06 Scavenger. R-06 Scavenger suffers critical hit (Destroy). Acquired Welding Torch. Penetrated by HV Slug. Lgt. Ion Engine destroyed. HV Slug penetrates Wall. Penetrated by HV Slug. HV Slug penetrates Wall. Acquired Wheel. Penetrated by HV Slug. Map ----- +----------------------------------------------------+ | ??????????????????????????????????????????? | | ??????????????????????????????????????????? | | ??????????????????????????????????????????? | | ??????????????????????????????????????????? | | ????????????????????????? ???????????#???? | | ????????????????????????? ?????????? #???? | | ????????????????????????? #????????# #???? | | ????????????????????????? #???????# ????? | | ????????????????????????? #?###### ????? | | ????????????????????????# #??# #" ?????? | | ??????????????#?????????# ???# " ??????? | | ????????????????????????# ???# "#??????? | | ????????????????????????# #### ##?????? | | ???????????????????????? ? ##????? | | ??????????????????? ????# #### #????? | | ????????????????????????# # # = #????? | | ????????????????????????# # #"!!= "#????? | | ???????????????????????##g# ! ! #?????? | | ??????????????????????##! ! ##!* ##?????? | | ???????????#?????????## = # ##??????? | | ?????????????????????# =%! # #???????? | | ?????????????????????###*= ## #???????? | | ?????????????????????# #%%| ## #???????? | | ????????????????#???# #%###### #???????? | | ????????????????????## #%# #?# #?????#?? | | ?????????????????????# #@# #?# #???????? | | ?????????????????????# ## # #?# #???????? | | ?????????????????????## # ####?# #???????? | | ????????????#???# ###%###### #???????? | | ?????????????????# =!= #??#????? | | ?????????????????# ! #???????? | | ?????????????????# # #############??????? | | ?????????????????# ?# ???????????????????? | | ?????????????????#???#????????????????????? | | ??????????????????????????????#???????????? | | ??????????????????????????????????????????? | | ??????????????????????????????????????????? | | ??????????????????????????????????????????? | | ??????????????????????????????????????????? | | ??????????????????????????????????????????? | | ??????????????????????????????????????????? | | ??????????????????????????????????????????? | | ??????????????????????????????????????????? | | ??????????????????????????????????????????? | | ??????????????????????????????????????????? | | ??????????????????????????????????????????? | | ??????????????????????????????????????????? | | ??????????????????????????????????????????? | | ??????????????????????????????????????????? | | ??????????????????????????????????????????? | +----------------------------------------------------+ Best States ------------- Heat Dissipation 35 Energy Generation 10 Energy Capacity 125 Matter Stores 290 Matter Capacity 300 Sight Range 16 Terrain Scan Range 16 Terrain Scan Density 10 Evasion (%) 50 Recoil Reduction 2 Item Schematics ----------------- None Robot Schematics ------------------ None Fabricated ------------ Nothing Alien Tech Used ----------------- None Achievements -------------- None Challenges ------------ None Game ------ Seed CargoGatlingStick Manual? 0 Play Time 00:08:59 Cumulative 7.4 hours Start 2024.04.21 @ 14:36:34 End 2024.04.21 @ 14:45:14 Sessions 1 Manual Loads 0 Difficulty Rogue Special Mode None Game No. 12 Rogue 12 Adventurer 0 Explorer 0 Win Type - Total 0 Types 0/0/0/0/0/0/0/0/0 Lore% 3 Gallery% 13 Achievement% 11 Wizard Run 0 Options --------- Layout 1 ASCII 0 Keyboard 0 Movement Mouse Keybinds 0 Fullscreen 1 Font 24/Smallcaps Map View 50x35 Zoom Use 0% Tactical HUD 0 Map Filters NONE Filters NONE Steam 0 RUN: b8eebff7-e645-49f6-a681-0b92d43f0690